Workbook

Sheet Texte
A14: 1 - Introduction - Programme
A16: L’objectif de l’exercice est de calculer les Résultats et les Risques de taux sur un portefeuille d’opérations de trésorerie, de type prêts et emprunts.
A18: Plus précisément :
A19: Le calcul de résultat consistera à calculer un résultat économique complet sur le premier trimestre 2017, à savoir entre le 30 décembre 2016 et le 31 mars 2017.
A21: Les différentes étapes du travail seront :
A23: - Produire l’échéancier futur du portefeuille
A24: - Calculer le résultat réalisé sur la période
A25: - Calculer la valorisation en Couru, à la date de début (30 décembre 2016) et à la date de fin de période (31 mars 2017), en déduire le résultat latent en couru
A26: - Calculer la valorisation en MarkToMarket, à la date de début (30 décembre 2016) et à la date de fin de période (31 mars 2017), en déduire le résultat latent en MTM.
A27: - Simuler le compte courant et calculer les agios sur ce compte avec l’échelle d’intérêt donnée, en déduire le cout de la trésorerie.
A29: Définition du portefeuille pour chaque élève:
A31: Le portefeuille de l’élève comprend 9 opérations parmi la liste des 17 opérations de prêts ou d’emprunts ci-dessous. Tous les portefeuilles contiendront l’opération numéro 0.
A32: Le choix est présenté en annexe 1.
A34: NUMERO | B34: TYPE | C34: DEBUT | D34: MOIS | E34: MONTANT | F34: TAUX
A35: 1 | B35: P | C35: 2016-08-06 | D35: 12 | E35: 5000000 | F35: 1
A36: 2 | B36: E | C36: 2016-10-08 | D36: 4 | E36: -3500000 | F36: 0.55
A37: 3 | B37: E | C37: 2016-12-03 | D37: 6 | E37: -3500000 | F37: 0.55
A38: 4 | B38: E | C38: 2016-09-17 | D38: 5 | E38: -5500000 | F38: 0.85
A39: 5 | B39: P | C39: 2016-09-10 | D39: 9 | E39: 2700000 | F39: 1.1
A40: 6 | B40: P | C40: 2016-06-11 | D40: 12 | E40: 5000000 | F40: 1.2
A41: 7 | B41: P | C41: 2016-09-03 | D41: 6 | E41: 3500000 | F41: 0.3
A42: 8 | B42: E | C42: 2016-06-04 | D42: 8 | E42: -7500000 | F42: 0.2
A43: 9 | B43: P | C43: 2016-04-09 | D43: 9 | E43: 4500000 | F43: 1.44
A44: 10 | B44: P | C44: 2017-01-14 | D44: 2 | E44: 1500000 | F44: 0.2
A45: 11 | B45: E | C45: 2017-02-11 | D45: 5 | E45: -3000000 | F45: 0.45
A46: 12 | B46: P | C46: 2017-01-28 | D46: 1 | E46: 2400000 | F46: 0.5
A47: 13 | B47: E | C47: 2017-01-07 | D47: 2 | E47: -1500000 | F47: 0.15
A48: 14 | B48: P | C48: 2017-03-18 | D48: 9 | E48: 5000000 | F48: 1.2
A49: 15 | B49: P | C49: 2017-02-25 | D49: 1 | E49: 8000000 | F49: 0.4
A50: 16 | B50: E | C50: 2017-03-11 | D50: 6 | E50: -6500000 | F50: 1.3
A51: 17 | B51: E | C51: 2017-01-21 | D51: 3 | E51: -9500000 | F51: 0.95
A52: « P » pour Prêt et « E » pour Emprunt.
A53: MOIS : durée de l’opération en mois entiers
A54: TAUX : Taux d’intérêt annuel en %
A55: La date de début sera toujours un mercredi et la date de valeur (démarrage du prêt) un vendredi à j+2.
A56: Si la date de maturité tombe un samedi ou un dimanche, un ajustement au lundi suivant sera effectué.
A58: Ex : Portefeuille de taux de l’élève 01 :
A60: Num | B60: PE | C60: Date Début | D60: Date Valeur | F60: Mois | G60: Notional | H60: Taux
A61: 1 | B61: P | C61: 2016-08-06 | D61: 2016-08-08 | F61: 12 | G61: 5000000 | H61: 1
A62: 3 | B62: E | C62: 2016-12-03 | D62: 2016-12-05 | F62: 6 | G62: -3500000 | H62: 0.55
A63: 5 | B63: P | C63: 2016-09-10 | D63: 2016-09-12 | F63: 9 | G63: 2700000 | H63: 1.1
A64: 2 | B64: E | C64: 2016-10-08 | D64: 2016-10-10 | F64: 4 | G64: -3500000 | H64: 0.55
A65: 4 | B65: E | C65: 2016-09-17 | D65: 2016-09-19 | F65: 5 | G65: -5500000 | H65: 0.85
A66: 11 | B66: E | C66: 2017-02-11 | D66: 2017-02-13 | F66: 5 | G66: -3000000 | H66: 0.45
A67: 14 | B67: P | C67: 2017-03-18 | D67: 2017-03-20 | F67: 9 | G67: 5000000 | H67: 1.2
A68: 10 | B68: P | C68: 2017-01-14 | D68: 2017-01-16 | F68: 2 | G68: 1500000 | H68: 0.2
A69: 12 | B69: P | C69: 2017-01-28 | D69: 2017-01-30 | F69: 1 | G69: 2400000 | H69: 0.5
A71: Les résultats en Euro, seront arrondis au centime d’euro.
A72: Les résultats en %, seront présentés avec 4 chiffres significatifs : 0.0000%
A73: Les résultats seront présentés dans la feuille Word de réponse.
A75: Les résultats sont à rendre à la fin de la seconde séance
A76: La notation tiendra compte du résultat obtenu et de sa précision.
A77: Contact : philippe.duchemin@finkeys.com
A79: 2 - Récupération des données
A81: Récupération des séries historiques de taux Eonia et Euribor
A82: Nous retiendrons comme période de référence, l’année : 2017
A84: 1 – Récupération des taux Euribor et Eonia sur 2017
A86: Aller sur le site: www.euribor-ebf.eu
A88: Aller dans Euribor dans le menu à gauche, sélectionner RATES, et l’année 2017.
A89: Effectuer une transposition du tableau afin d’obtenir le tableau demandé (voir ci – dessous).
A91: Recommencez avec l’Eonia, pour lequel nous n’avons qu’une seule échéance.
A93: S’assurer que les dates sont identiques entre les deux extractions.
A95: Mettre en forme un tableau de données avec :
A96: - En première colonne, les dates en ordre croissant
A97: - En ligne, les différents taux par ordre de maturité
A99: Travail sur les taux :
A101: Eonia® is computed as a weighted average of all overnight unsecured lending transactions in the interbank market, initiated within the euro area by the Panel Banks. It is reported on an act/360 day count convention and is displayed to 3 decimal places.
A103: 'Overnight' means from one TARGET day (i.e. day on which the Trans-European Automated Real-Time Gross-Settlement Express Transfer system is open) to the next TARGET day.
A106: Définition: le taux Eonia du jour N est le taux des prêts « overnight » de N à N+1
A108: Calcul du facteur de capitalisation sur chaque « micro période » :
A109: - Afin de ne pas travailler avec des taux négatifs, nous prendrons dans tout l’exercice des taux augmentés de 200 bp.
A110: - la durée de chaque période est égale à 1 pour les jours de semaine, et à 3 pour le week-end. D’autres durées peuvent intervenir avec les jours fériés.
A111: - La base à utiliser est 360, ce facteur est donc : (1+taux_eonia x durée/360)
A113: Calcul de la capitalisation de l’Eonia+200bp et de l’Euribor 3M+200bp sur le premier trimestre :
A114: - La composition consiste à effectuer le produit des facteurs précédents, à partir d’une position de 1 (1 euro), le 31 décembre 2015.
A116: Formule complète :
A118: Exemple:
A119: Le taux Eonia+200bp est égal à 2% - 0,329% = 1.671%, le 30 décembre 2016
A120: Le prochain jour ouvré, est le 2 janvier 2017, pour lequel le taux Eonia+200bp est 2% - 0,0356% = 1,644%
A121: En conséquence, la durée de la période est égale à 3 jours.
A122: La capitalisation du premier jour donne ainsi le résultat suivant : (1+1,671*3 /100/360)=1,000139250
A124: Interpolation des taux d’intérêt.
A126: Calcul des taux de marché des opérations financières, afin de calcul la valeur actuelle des flux futurs (NPV).
A128: Le calcul porte sur la courbe des taux Eonia/Euribor, aux dates de début de période (30 décembre 2016) et date de maturité (31 mars 2017).
A130: L’interpolation peut s’effectuer avec la fonction TENDANCE
A132: Les calculs de ces taux/prix futurs, doivent s’effectuer uniquement pour les opérations en vie et non sur les opérations échues :
A133: - date d’opération (start date) antérieure à la date de calcul
A134: - date de maturité supérieure à la date de calcul
A136: 3 - Calcul du résultat
A138: L’intérêt est échangé en une seule fois à la date de maturité.
A139: La date de maturité devra être calculée à partir de la date de valeur et de la durée en mois.
A140: Si la date de maturité tombe un samedi ou un dimanche, cette date devra être décalée au lundi suivant : on obtiendra ainsi une date de maturité ajustée.
A141: Le calcul de l’intérêt sur chaque opération, dépendra du taux, du capital et de la durée prise entre la date de valeur et la date de maturité ajustée.
A142: Pour cela :
A143: - Calculer la durée totale de chaque opération : cette durée est égale à la date de maturité ajustée moins la date de valeur, durée en jour divisée par la base qui est égale à 360.
A144: - Calcul l’intérêt : c’est le produit du notionnel, du taux et de la durée (en année).
A145: Mettre un signe à l’intérêt : positif pour les Prêts (P) et négatif pour les Emprunts (E)
A147: Partie 1 – Calcul de l’échéancier futur du portefeuille
A149: Identifier le cash-flow final, égal au remboursement de capital plus l’intérêt qu’il faut calculer.
A150: Remarque : le capital et l’intérêt sont de même sens.
A152: Partie 2 – Calcul du résultat réalisé
A154: Identifier l’ensemble des flux de résultat de la période de calcul.
A155: Rappel : le résultat réalisé comprend les intérêts uniquement, le capital n’est pas un résultat.
A157: Partie 3 – Calcul du résultat latent en couru
A159: Pour chacune des 2 dates de calcul (le 30 décembre 2016 et le 31 mars 2017), calculer pour chaque opération la valorisation en couru :
A160: - identification du prochain flux d’intérêt
A161: - calcul du nombre de jours entre la date de début du flux (start date) et la date de calcul.
A162: - Application d’une règle de trois sur le flux d’intérêt précédemment calculé
A164: Partie 04 - Calcul du Cout Amorti
A166: Cette partie reprend le calcul du résultat en utilisant la méthode du cout amorti.
A168: Calcul du TIE : taux d’intérêt effectif, correspondant au taux de rendement actuariel de chaque opérations.
A169: Par définition :
A172: Le TIE sera donc égal à :
A175: Ensuite la valorisation sera calculée en utilisant ce TIE comme taux d’actualisation unique :
A179: TIE : Taux d’Intérêt Effectif
A180: Calculer le TIE moyen du portefeuille : moyenne pondérée par les capitaux
A181: Calculer le résultat latent en cout amorti
A182: Calculer le nouveau résultat global en cout amorti
A184: Partie 5 – Calcul du résultat latent en MtM
A186: Pour chacune des 2 dates de calcul (le 30 décembre 2016 et le 31 mars 2017), calculer pour chaque opération la valorisation en MtM :
B187: - identification du prix de marché de l’opération en fonction de la courbe de taux fournie (voir introduction).
A188: - Calcul de la valeur actuelle des flux futurs (NPV : net present value), selon la formule suivante, utilisée pour les opérations courtes (inférieure à l’année) :
A192: Remarque : le capital est soustrait de la valeur actuelle du flux futurs, afin d’obtenir un montant qui converge vers l’intérêt à l’échéance, et non pas vers le flux complet (capital plus intérêt).
A195: Partie 6 – Calcul de la Trésorerie
A197: La période de calcul est toujours la période du 30 décembre 2016 au 31 mars 2017.
A198: La trésorerie repose sur le solde initial et sur les flux dont la date de valeur est comprise dans la période de calcul.
A200: Solde initial selon la méthode du couru :
A201: Calculer la trésorerie théorique au 30 décembre 2016, avec la méthode du couru et la méthode mtm.
A202: - Prendre les flux de capitaux des opérations en vie au 30 décembre 2016 : les prêts (P) seront à financer (négatif), et les emprunts (E) seront placés (positif).
A203: - Ajouter le montant des intérêts courus à cette date : pour chaque opération, les signe du capital et de l’intérêt couru sont les mêmes.
A205: Solde initial selon la méthode MTM :
A206: Même calcul que précédemment, en remplaçant la valorisation couru, par la valorisation mtm.
A207: Cette fois, les signes entre le capital et la valorisation peuvent être différents.
A209: Flux en date de valeur dans le compte courant :
A210: Identifier tous les flux de trésorerie dont la date de valeur est comprise dans l’intervalle du calcul du résultat (entre le 30 décembre 2016 exclu et le 31 mars 2017 inclus).
A211: Faire attention du signe retenus : positif si on reçoit le flux, négatif si on paie le flux.
A212: Effectuer une simulation du compte courant, avec l’EONIA+200bp par capitalisation au jour le jour.
A213: Le calcul des agios est obtenu par la formule : AGIOS = (Solde Final – Solde Initial – Somme des flux)
A215: Décomposition des agios :
A216: Relatif à ces agios, retrouver l’effet du solde initial du compte, d’une part avec la méthode en couru et d’autre part avec la méthode en mtm.
A217: Les agios relatifs aux flux de la période (hors solde initial), sera aussi décomposé en agios relatifs aux capitaux, et agios relatifs aux intérêts échus.
A219: Partie 7 – Calcul du Résultat complet
A221: Agglomérez les différentes composantes du résultat afin d’obtenir un résultat complet selon les 3 méthodes : couru, cout amorti, mtm.
A222: Le résultat complet est la somme de 3 composantes :
A223: - Le résultat réalité
A224: - Le résultat latent
A225: - Le cout du financement (agios)
A227: Méthode | B227: Méthode du couru | C227: Méthode du cout amorti | D227: Méthode du mtm
A228: Résultat REALISE | B228: Somme des flux d’intérêts de la période | C228: Somme des flux d’intérêts de la période | D228: Somme des flux d’intérêts de la période
A229: Résultat LATENT | B229: Ecart des valorisations en couru | C229: Ecart des valorisations en cout amorti | D229: Ecart des valorisations en MtM
A230: Agios sur Solde Initial de Trésorerie | B230: Agios sur solde initial : capitaux plus valorisation en couru au 30/12/2016 | C230: Agios sur solde initial : capitaux plus valorisation en cout amorti au 30/12/2016 | D230: Agios sur solde initial : capitaux plus valorisation en mtm au 30/12/2016
A231: Agios sur les flux d’intérêts et de capitaux | B231: Agios sur flux de la période | C231: Agios sur flux de la période | D231: Agios sur flux de la période
A232: Effectuer dans les deux cas, la somme de ces 4 composantes.
A233: Calcul de l’écart de méthode : écart de méthode = résultat mtm – résultat couru
A235: 4 - Les Risques
A237: Cette partie portera sur un rapprochement entre les résultats, tels que calculés précédemment, et un calcul d’indicateurs de risque.
A239: La période de calcul, portera toujours sur le trimestre du 30 décembre 2016 au 31 mars 2017.
A240: Les calculs de risque seront faits à la date de début : 30 décembre 2016.
A242: Cette méthodologie fonctionne à condition d’avoir un portefeuille constant. Les calculs porteront donc uniquement sur les opérations en vie au début et en fin de période.
A244: Partie 8 – Calcul du nouveau résultat sur le portefeuille d’ouverture
A246: Recalcul du résultat complet sur le sous portefeuille composé des opérations en vie en début et en fin de période : nous appellerons ce portefeuille le portefeuille d’ouverture.
A247: Calcul du résultat latent, réalisé et financement selon la méthode du mark to market uniquement sur le portefeuille d’ouverture.
A249: Partie 9 – Calcul des indicateurs de risque sur le portefeuille d’ouverture
A251: Calculer la duration le portefeuille d’ouverture à la date du 30 décembre 2016
A252: - La duration est égale à la durée restant à courir pour les opérations sans flux intermédiaire.
A253: - La duration du portefeuille s’obtient en pondérant par les valeurs relatives en MtM (capital compris dans la formule du mtm)
A254: - Utilisez la méthode proportionnelle (voir exemple) pour le calcul du taux d’actualisation.
A256: Calculez la sensibilité du portefeuille à la date du 30 décembre 2016
A257: - Utiliser une formule proportionnelle pour diviser la duration, à savoir : 1/(1+taux_mtm*durée_restant_a_courir/360)
A259: Puis la convexité en reprenant les formules du cours.
A260: - Appliquer les mêmes principes : utiliser la duration modifiée : durée*(durée+1an)
A261: - Actualiser au carré : 1/(1+taux_mtm*durée_restant_a_courir/360)^2
A263: Partie 10 – Simulation du résultat du portefeuille d’ouverture
A265: Calculez l’impact de la variation effective des taux en recalculant le MtM à la date du 30 décembre 2016, avec les taux de marché du 31 mars 2016, sur le portefeuille d’ouverture.
A267: Calculez l’impact d’une variation du MtM pour une variation de taux de 10 bp sur chacun des taux de marché, sur le portefeuille d’ouverture au 30 décembre 2016
A269: Calculer l’impact théorique de résultat à partir de la sensibilité, donc au premier ordre en utilisant la sensibilité.
A270: Répéter le calcul au second ordre avec la convexité.
A271: Faire la somme.
A273: Calculer le taux moyen de variation sur le trimestre, en divisant la variation effective de taux par les impacts en sensibilité et en convexité.

Sheet Euribor
A1: date | B1: EONIA | C1: 1w | D1: 2w | E1: 1m | F1: 2m | G1: 3m | H1: 6m | I1: 9m | J1: 12m
A2: 2016-12-30 | B2: =ROUND(-0.329,10) -> -0.329 | C2: =ROUND(-0.373,10) -> -0.373 | D2: =ROUND(-0.372,10) -> -0.372 | E2: =ROUND(-0.368,10) -> -0.368 | F2: =ROUND(-0.338,10) -> -0.338 | G2: =ROUND(-0.319,10) -> -0.319 | H2: =ROUND(-0.221,10) -> -0.221 | I2: =ROUND(-0.139,10) -> -0.139 | J2: =ROUND(-0.082,10) -> -0.082 | K2: =A2 -> 2016-12-30
A3: 2017-01-02 | B3: =ROUND(-0.356,10) -> -0.356 | C3: =ROUND(-0.371,10) -> -0.371 | D3: =ROUND(-0.374,10) -> -0.374 | E3: =ROUND(-0.368,10) -> -0.368 | F3: =ROUND(-0.336,10) -> -0.336 | G3: =ROUND(-0.318,10) -> -0.318 | H3: =ROUND(-0.22,10) -> -0.22 | I3: =ROUND(-0.14,10) -> -0.14 | J3: =ROUND(-0.083,10) -> -0.083 | K3: =A3 -> 2017-01-02
A4: 2017-01-03 | K4: =A4 -> 2017-01-03
A5: 2017-01-04 | K5: 2017-01-04
A6: 2017-01-05 | K6: 2017-01-05
A7: 2017-01-06 | K7: 2017-01-06
A8: 2017-01-09 | K8: 2017-01-09
A9: 2017-01-10 | K9: 2017-01-10
A10: 2017-01-11 | K10: 2017-01-11
A11: 2017-01-12 | K11: 2017-01-12
A12: 2017-01-13 | K12: 2017-01-13
A13: 2017-01-16 | K13: 2017-01-16
A14: 2017-01-17 | K14: 2017-01-17
A15: 2017-01-18 | K15: 2017-01-18
A16: 2017-01-19 | K16: 2017-01-19
A17: 2017-01-20 | K17: 2017-01-20
A18: 2017-01-23 | K18: 2017-01-23
A19: 2017-01-24 | K19: 2017-01-24
A20: 2017-01-25 | K20: 2017-01-25
A21: 2017-01-26 | K21: 2017-01-26
A22: 2017-01-27 | K22: 2017-01-27
A23: 2017-01-30 | K23: 2017-01-30
A24: 2017-01-31 | K24: 2017-01-31
A25: 2017-02-01 | K25: 2017-02-01
A26: 2017-02-02 | K26: 2017-02-02
A27: 2017-02-03 | K27: 2017-02-03
A28: 2017-02-06 | K28: 2017-02-06
A29: 2017-02-07 | K29: 2017-02-07
A30: 2017-02-08 | K30: 2017-02-08
A31: 2017-02-09 | K31: 2017-02-09
A32: 2017-02-10 | K32: 2017-02-10
A33: 2017-02-13 | K33: 2017-02-13
A34: 2017-02-14 | K34: 2017-02-14
A35: 2017-02-15 | K35: 2017-02-15
A36: 2017-02-16 | K36: 2017-02-16
A37: 2017-02-17 | K37: 2017-02-17
A38: 2017-02-20 | K38: 2017-02-20
A39: 2017-02-21 | K39: 2017-02-21
A40: 2017-02-22 | K40: 2017-02-22
A41: 2017-02-23 | K41: 2017-02-23
A42: 2017-02-24 | K42: 2017-02-24
A43: 2017-02-27 | K43: 2017-02-27
A44: 2017-02-28 | K44: 2017-02-28
A45: 2017-03-01 | K45: 2017-03-01
A46: 2017-03-02 | K46: 2017-03-02
A47: 2017-03-03 | K47: 2017-03-03
A48: 2017-03-06 | K48: 2017-03-06
A49: 2017-03-07 | K49: 2017-03-07
A50: 2017-03-08 | K50: 2017-03-08
A51: 2017-03-09 | K51: 2017-03-09
A52: 2017-03-10 | K52: 2017-03-10
A53: 2017-03-13 | K53: 2017-03-13
A54: 2017-03-14 | K54: 2017-03-14
A55: 2017-03-15 | K55: 2017-03-15
A56: 2017-03-16 | K56: 2017-03-16
A57: 2017-03-17 | K57: 2017-03-17
A58: 2017-03-20 | K58: 2017-03-20
A59: 2017-03-21 | K59: 2017-03-21
A60: 2017-03-22 | K60: 2017-03-22
A61: 2017-03-23 | K61: 2017-03-23
A62: 2017-03-24 | K62: =A62 -> 2017-03-24
A63: 2017-03-27 | K63: 2017-03-27
A64: 2017-03-28 | K64: 2017-03-28
A65: 2017-03-29 | K65: 2017-03-29
A66: 2017-03-30 | K66: 2017-03-30
A67: 2017-03-31 | K67: 2017-03-31
A68: 2017-04-03 | K68: 2017-04-03
A69: 2017-04-04 | K69: 2017-04-04
A70: 2017-04-05
B71: www.euribor-ebf.eu

Sheet Portage
A1: SIMULATION DE COMPTE COURANT | J1: Solde Init Couru | K1: Solde Init MtM | L1: Solde Init cout amorti
E2: 200 | F2: bp
C3: ANNEE 2016 | E3: EURIBOR 3M
C4: Jour | D4: Date | E4: Taux | F4: Durée | G4: Facteur | H4: Flux
B5: 1 | C5: =D5 -> 2016-12-30 | D5: =Euribor!A2 -> 2016-12-30 | E5: =Euribor!B2+$E$2/100 -> 1.671 | I5: 1 | J5: à remplir | K5: à remplir | L5: à remplir
B6: 2 | C6: =D6 -> 2017-01-02 | D6: =Euribor!A3 -> 2017-01-02 | E6: =Euribor!B3+$E$2/100 -> 1.644 | F6: =D6-D5 -> 3 | G6: =1+E5*F6/36000 -> 1.00013925 | H6: à remplir | I6: =I5*G6 -> 1.00013925 | J6: =J5*G6+H6 ->  | K6: =K5*G6+H6 ->  | L6: =L5*G6+H6 -> 
B7: 3
B8: 4
B9: 5
B10: 6
B11: 7
B12: 8
B13: 9
B14: 10
B15: 11
B16: 12
B17: 13
B18: 14
B19: 15
B20: 16
B21: 17
B22: 18
B23: 19
B24: 20
B25: 21
B26: 22
B27: 23
B28: 24
B29: 25
B30: 26
B31: 27
B32: 28
B33: 29
B34: 30
B35: 31
B36: 32
B37: 33
B38: 34
B39: 35
B40: 36
B41: 37
B42: 38
B43: 39
B44: 40
B45: 41
B46: 42
B47: 43
B48: 44
B49: 45
B50: 46
B51: 47
B52: 48
B53: 49
B54: 50
B55: 51
B56: 52
B57: 53
B58: 54
B59: 55
B60: 56
B61: 57
B62: 58
B63: 59
B64: 60
B65: 62
B66: 63
B67: 64
H70: capital initial
H71: flux
H72: frais de financement
H74: financement initial
H75: financement flux

Sheet Courbe
F1: 2016-12-30 | G1: 200 | H1: bp | I1: 2017-03-31 | J1: 200 | K1: bp
A3: 1 | B3: EONIA | C3: 2 | D3: =$F$1+C3 -> 2017-01-01 | E3: =D3-$F$1 -> 2 | G3: =$I$1+C3 -> 2017-04-02 | H3: =G3-$I$1 -> 2
A4: 2 | B4: 1w | C4: 7 | D4: =$F$1+C4 -> 2017-01-06 | E4: =D4-$F$1 -> 7 | G4: =$I$1+C4 -> 2017-04-07 | H4: =G4-$I$1 -> 7
A5: 3 | B5: 2w | C5: 14 | D5: =$F$1+C5 -> 2017-01-13 | E5: 14 | G5: =$I$1+C5 -> 2017-04-14 | H5: 14
A6: 4 | B6: 1m | C6: 1 | D6: =EDATE($F$1,C6) -> 2017-01-30 | E6: 31 | G6: =EDATE($I$1,C6) -> 2017-04-30 | H6: 30
A7: 5 | B7: 2m | C7: 2 | D7: 2017-02-28 | E7: 60 | G7: 2017-05-31 | H7: 61
A8: 6 | B8: 3m | C8: 3 | D8: 2017-03-30 | E8: 90 | G8: 2017-06-30 | H8: 91
A9: 7 | B9: 6m | C9: 6 | D9: 2017-06-30 | E9: 182 | G9: 2017-09-30 | H9: 183
A10: 8 | B10: 9m | C10: 9 | D10: 2017-09-30 | E10: 274 | G10: 2017-12-31 | H10: 275
A11: 9 | B11: 12m | C11: 12 | D11: 2017-12-30 | E11: 365 | G11: 2018-03-31 | H11: 365
C13: INTERPOLATION | F13: =F1 -> 2016-12-30 | I13: INTERPOLATION | K13: =I1 -> 2017-03-31
D14: Date | E14: jours | F14: taux interpolé | I14: Date | J14: jours | K14: taux interpolé
B15: 1
B16: 2
B17: 3
B18: 4 | F18: =IF(C18,MATCH(E18,$E$3:$E$11,1),"") -> 
B19: 5
B20: 6
B21: 7
B22: 8
B23: 9
B24: 10
B25: 11
B26: 12
B27: 13
B28: 14
B29: 15
B30: 16

Sheet Portefeuille
I1: RESULTATS 1ER TRIMESTRE 2017
S2: Résultat | U2: Valorisation | Y2: =Courbe!F1 -> 2016-12-30 | AA2: Valorisation | AE2: =Courbe!I1 -> 2017-03-31 | AI2: Financement
G3: Start Date | K3: Mat Date | S3: Echus | U3: Jours | V3: Jours | AA3: Jours | AB3: Jours | AG3: P&L LATENT | AI3: Capital initial | AK3: Capital final | AM3: intérêt
B4: Num | C4: PE | E4: Start Date | F4: ajust | I4: MatDate | J4: ajust | L4: Mois | M4: Notional | N4: Taux | O4: Durée | P4: Intérêt | Q4: TIE | U4: Couru | V4: A courir | W4: Taux | X4: Couru | Y4: MtM Compta | Z4: Cout Amorti | AA4: Couru | AB4: A courir | AC4: Taux | AD4: Couru | AE4: MtM Compta | AF4: Cout Amorti | AG4: Couru | AH4: MtM | AI4: flux | AJ4: date | AK4: flux | AL4: date | AM4: flux | AN4: date
A5: 1 | B5: 1 | C5: P | D5: =E5 -> 2016-10-08 | E5: 2016-10-08 | F5: 0 | G5: =E5+F5 -> 2016-10-08 | H5: =I5 -> 2017-02-08 | I5: =EDATE(G5,L5) -> 2017-02-08 | J5: 0 | L5: 4
A6: 2
A7: 3
A8: 4
A9: 5
A10: 6
A11: 7
A12: 8
A13: 9
P15: =SUM(P5:P13) -> 0 | S15: =SUM(S5:S13) -> 0 | X15: =SUM(X5:X13) -> 0 | Y15: =SUM(Y5:Y13) -> 0 | Z15: =SUM(Z5:Z13) -> 0 | AD15: =SUM(AD5:AD13) -> 0 | AE15: =SUM(AE5:AE13) -> 0 | AF15: =SUM(AF5:AF13) -> 0 | AG15: =SUM(AG5:AG13) -> 0 | AH15: =SUM(AH5:AH13) -> 0
AI20: Réponse 2 1 | AJ20: réalisé
AI21: Réponse 3 3 | AJ21: latent couru
AI22: Réponse 4 3 | AJ22: latent mtm
AI23: Réponse 5 1 | AJ23: solide initial couru
AI24: Réponse 5 2 | AJ24: solde initial mtm
AI25: Réponse 5 3 | AJ25: somme des flux capitaux
AI26: Réponse 5 4 | AJ26: somme des flux intérêt
AI27: Réponse 5 5 | AJ27: financement total couru
AI28: Réponse 5 6 | AJ28: financement total mtm
AI29: Réponse 6 1 | AJ29: résultat total en couru
AI30: Réponse 6 2 | AJ30: résultat total en mtm
AI31: Réponse 7 1 | AJ31: tie moyen
AI32: Réponse 7 2 | AJ32: latent cout amorti
AI33: Réponse 7 3 | AJ33: financement cout amorti
AI34: Réponse 7 4 | AJ34: résultat total cout amorti
AI35: Réponse 8 1 | AJ35: résultat réalisé sur portefeuille d'ouverture
AI36: Réponse 8 2 | AJ36: résulat latent sur portefeuille d'ouverture
AI37: Réponse 8 3 | AJ37: financement global du portefeuille d'ouverture
AI38: Réponse 8 4 | AJ38: résultat complet sur portefeuille d'ouverture
AI39: Réponse 9 1 | AJ39: duration du portefeuille d'ouverture
AI40: Réponse 9 2 | AJ40: sensibilité du portefeuille d'ouverture
AI41: Réponse 9 3 | AJ41: convexité du portefeuille d'ouverture
AI42: Réponse 10 1 | AJ42: impact d'une variation théorique de 10bp, premier ordre
AI43: Réponse 10 2 | AJ43: impact d'une variation théorique de 10bp, premier ordre et second ordre (avec convexité)
X52: =#REF! ->  | Y52: =#REF! -> 
X53: =#REF! ->  | Y53: =#REF! -> 
X54: =#REF! ->  | Y54: =#REF! -> 
X55: =#REF! ->  | Y55: =#REF! -> 
X56: =#REF! ->  | Y56: =#REF! -> 
X57: =#REF! ->  | Y57: =#REF! -> 
X58: =#REF! ->  | Y58: =#REF! -> 
X59: =#REF! ->  | Y59: =#REF! -> 
X60: =#REF! ->  | Y60: =#REF! -> 
Y61: =SUM(Y52:Y60) -> 

Sheet Students
A1: 1 | B1: 2 | C1: 3 | E1: 4 | F1: 5 | G1: 6 | H1: 7 | I1: 8 | J1: 9 | K1: 10 | L1: 11
A2: 1 | B2: ABERKAN | C2: Youssra | D2: P2 | E2: 2 | F2: 4 | G2: 1 | H2: 3 | I2: 10 | J2: 13 | K2: 9 | L2: 11
A3: 2 | B3: AKYOL | C3: Aydin Deniz | D3: P2 | E3: 5 | F3: 7 | G3: 6 | H3: 8 | I3: 15 | J3: 16 | K3: 12 | L3: 14
A4: 3 | B4: ALIMZHANOVA | C4: Kamilla | D4: P1 | E4: 2 | F4: 5 | G4: 1 | H4: 6 | I4: 10 | J4: 15 | K4: 9 | L4: 12
A5: 4 | B5: ANDRADE | C5: Clarisse | D5: P1 | E5: 4 | F5: 7 | G5: 3 | H5: 8 | I5: 13 | J5: 16 | K5: 11 | L5: 14
A6: 5 | B6: ATTANASIO | C6: Estelle | D6: P1 | E6: 2 | F6: 7 | G6: 1 | H6: 8 | I6: 10 | J6: 16 | K6: 9 | L6: 14
A7: 6 | B7: BAKEYALA | C7: CLAUDIA | D7: P2 | E7: 5 | F7: 4 | G7: 6 | H7: 3 | I7: 15 | J7: 13 | K7: 12 | L7: 11
A8: 7 | B8: BOUMYA | C8: Maria | D8: P1 | E8: =E2 -> 2 | F8: 4 | G8: =G3 -> 6 | H8: =H3 -> 8 | I8: =I4 -> 10 | J8: 13 | K8: 12 | L8: =L5 -> 14
A9: 8 | B9: BRANDON | C9: Jill | D9: P1 | E9: 5 | F9: 7 | G9: =G4 -> 1 | H9: 3 | I9: 15 | J9: =J5 -> 16 | K9: =K6 -> 9 | L9: 11
A10: 9 | B10: BUCZYNKI | C10: Vadim | D10: P1 | E10: 2 | F10: 5 | G10: =G5 -> 3 | H10: =H5 -> 8 | I10: =I6 -> 10 | J10: 15 | K10: 11 | L10: 14
A11: 10 | B11: DEMIR | C11: Dikran | D11: P1 | E11: 4 | F11: 7 | G11: =G6 -> 1 | H11: 6 | I11: 13 | J11: 16 | K11: 9 | L11: 12
A12: 11 | B12: FATREZ | C12: Florian | D12: P2 | E12: 2 | F12: 7 | G12: =G7 -> 6 | H12: =H7 -> 3 | I12: =I8 -> 10 | J12: 16 | K12: =K9 -> 9 | L12: 14
A13: 12 | B13: GUENO | C13: Louis | D13: P2 | E13: 5 | F13: 4 | G13: 1 | H13: =H8 -> 8 | I13: =I9 -> 15 | J13: 13 | K13: 9 | L13: =L10 -> 14
A14: 13 | B14: HEURTEVIN | C14: Charles | D14: P1 | E14: 2 | F14: 4 | G14: =G9 -> 1 | H14: =H9 -> 3 | I14: =I10 -> 10 | J14: =J10 -> 15 | K14: =K11 -> 9 | L14: =L11 -> 12
A15: 14 | B15: KEHAR | C15: Salem | D15: P2 | E15: 5 | F15: 7 | G15: 6 | H15: =H10 -> 8 | I15: 15 | J15: 13 | K15: =K12 -> 9 | L15: =L12 -> 14
A16: 15 | B16: KOUADIO-TIACOH | C16: Marie-Guy | D16: P2 | E16: 2 | F16: 5 | G16: =G11 -> 1 | H16: =H11 -> 6 | I16: =I12 -> 10 | J16: 16 | K16: 12 | L16: 11
A17: 16 | B17: LAMZABI | C17: Wahib | D17: P2 | E17: 4 | F17: 7 | G17: 3 | H17: 8 | I17: 15 | J17: 13 | K17: =K14 -> 9 | L17: 14
A18: 17 | B18: LORGIS | C18: Guillaume | D18: P1 | E18: 2 | F18: 7 | G18: =G13 -> 1 | H18: =H13 -> 8 | I18: 10 | J18: 15 | K18: =K15 -> 9 | L18: 12
A19: 18 | B19: MANAS | C19: Timothée | D19: P1 | E19: 5 | F19: 4 | G19: =G14 -> 1 | H19: =H14 -> 3 | I19: 10 | J19: 16 | K19: 9 | L19: 11
A20: 19 | B20: MANIQUANT | C20: Alexandre | D20: P1 | E20: =E4 -> 2 | F20: 5 | G20: =G5 -> 3 | H20: 8 | I20: =I6 -> 10 | J20: 16 | K20: 9 | L20: =L7 -> 11
A21: 20 | B21: MECHRI | C21: Myriam | D21: P2 | E21: 4 | F21: 7 | G21: 1 | H21: 8 | I21: 15 | J21: 13 | K21: 12 | L21: =L8 -> 14
A22: 21 | B22: PAUL | C22: Jessica | D22: P2 | E22: 2 | F22: 7 | G22: 6 | H22: 3 | I22: 10 | J22: 13 | K22: 12 | L22: 11
A23: 22 | B23: PELISSIER | C23: Théo | D23: P1 | E23: 5 | F23: 4 | G23: 6 | H23: 8 | I23: 15 | J23: 16 | K23: 9 | L23: 14
A24: 23 | B24: PEMBELLOT | C24: Jean-Brice | D24: P1 | E24: 2 | F24: 4 | G24: 1 | H24: 3 | I24: 10 | J24: 15 | K24: 11 | L24: 12
A25: 24 | B25: PETILLOT | C25: Benoît | D25: P2 | E25: 5 | F25: 7 | G25: 3 | H25: 8 | I25: 13 | J25: 16 | K25: 9 | L25: 14
A26: 25 | B26: SALAO | C26: Kabirou | D26: P1 | E26: 2 | F26: 5 | G26: 1 | H26: 6 | I26: 10 | J26: 16 | K26: 9 | L26: 14
A27: 26 | B27: SRISHANTHARASAH | C27: Saranniya | D27: P1 | E27: 4 | F27: 7 | G27: 6 | H27: 3 | I27: 15 | J27: 13 | K27: 9 | L27: 12
A28: 27 | B28: SURSIN | C28: Lysiane | D28: P1 | E28: 2 | F28: 7 | G28: 1 | H28: 8 | I28: 10 | J28: 15 | K28: 9 | L28: 14
A29: 28 | B29: WILLIAMS | C29: Pierre | D29: P1 | E29: 5 | F29: 4 | G29: 1 | H29: 3 | I29: 15 | J29: 13 | K29: 9 | L29: 11
A30: 29 | E30: 2 | F30: 4 | G30: 6 | H30: 8 | I30: 10 | J30: 16 | K30: 12 | L30: 14
A31: 30 | E31: 5 | F31: 7 | G31: 1 | H31: 6 | I31: 15 | J31: 13 | K31: 9 | L31: 12
A32: 31 | E32: 2 | F32: 5 | G32: 3 | H32: 8 | I32: 10 | J32: 15 | K32: 9 | L32: 11
A33: 32 | E33: 4 | F33: 7 | G33: 1 | H33: 8 | I33: 10 | J33: 16 | K33: 9 | L33: 11
A34: 33 | E34: 2 | F34: 7 | G34: 1 | H34: 3 | I34: 10 | J34: 16 | K34: 9 | L34: 14
A35: 34 | E35: 5 | F35: 4 | G35: 3 | H35: 8 | I35: 15 | J35: 13 | K35: 12 | L35: 11
A36: 35 | E36: =E20 -> 2 | F36: 5 | G36: =G21 -> 1 | H36: 8 | I36: =I22 -> 10 | J36: 13 | K36: 12 | L36: 14
A37: 36 | E37: 4 | F37: 7 | G37: 6 | H37: 3 | I37: 15 | J37: 16 | K37: 9 | L37: 12
A38: 37 | E38: 2 | F38: 7 | G38: 6 | H38: 8 | I38: 10 | J38: 15 | K38: 11 | L38: 14
A39: 38 | E39: 5 | F39: 4 | G39: 1 | H39: 3 | I39: 13 | J39: 16 | K39: 9 | L39: 14
A40: 39 | E40: 2 | F40: 4 | G40: 3 | H40: 8 | I40: 10 | J40: 16 | K40: 9 | L40: 12
A41: 40 | B41: Suppléant 1 | E41: 5 | F41: 7 | G41: 1 | H41: 6 | I41: 15 | J41: 13 | K41: 9 | L41: 14
A42: 41 | B42: Suppléant 2 | E42: 2 | F42: 5 | G42: 6 | H42: 3 | I42: 10 | J42: 15 | K42: 9 | L42: 11
A43: 42 | B43: Suppléant 3 | E43: 4 | F43: 7 | G43: 1 | H43: 8 | I43: 15 | J43: 13 | K43: 9 | L43: 14

Sheet Réponses
B1: Numéro/Nom/ Prénom: /….. / ……………………/………………
B3: Présentez les résultats en Euro avec 2 décimales, et les résultats en % avec 4 décimales.
B5: Récupération des Taux
A6: 01 01 | B6: 01-01 Taux Eonia au 31 mars 2017
A7: 01 02 | B7: 01-02 Capitalisation du taux Eonia+200bp du premier trimestre 2017
A8: 01 03 | B8: 01-03 Capitalisation du taux Euribor3M+200bp du premier trimestre 2017
A9: 01 04 | B9: 01-04 Taux de marché la seconde opération du portefeuille au 31 mars 2017
A12: 02 01 | B12: 02-01 Résultat réalisé sur la période
B14: Valorisations en couru
A15: 03 01 | B15: 3-01 Valorisation du portefeuille au 30 décembre 2016
A16: 03 02 | B16: 3-02 Valorisation du portefeuille au 31 mars 2017
A17: 03 03 | B17: 3-03 Résultat latent sur le portefeuille sur la période
B19: Valorisations en Mark To Market
A20: 04 01 | B20: 4-01 Valorisation du portefeuille au 30 décembre 2016
A21: 04 02 | B21: 4-02 Valorisation du portefeuille au 31 mars 2017
A22: 04 03 | B22: 4-03 Résultat latent sur le portefeuille sur la période
B24: Trésorerie
A25: 05 01 | B25: 5-01 Calcul du solde initial du au capitaux à financer au 30 décembre 2016
A26: 05 02 | B26: 5-02 Financement lié au solde initial des capitaux
A27: 05 03 | B27: 5-03 Calcul du solde initial en couru
A28: 05 04 | B28: 5-04 Calcul du solde initial en mtm
A29: 05 05 | B29: 5-05 Calcul du solde initial en cout amorti
A30: 05 06 | B30: 5-06 Somme des flux de capitaux liés aux nouvelles opérations
A31: 05 07 | B31: 5-07 Somme des flux de capitaux liés aux opérations échus
A32: 05 08 | B32: 5-08 Somme des flux d’intérêt sur la période
A33: 05 09 | B33: 5-09 Calcul du cout de financement total avec un solde initial en couru
A34: 05 10 | B34: 5-10 Calcul du cout de financement total avec un solde initial en mtm
A35: 05 11 | B35: 5-11 Calcul du cout de financement total avec un solde initial en cout amorti
B37: Calcul du Résultat
A38: 06 01 | B38: 6-01 Calcul du résultat complet en Couru
A39: 06 02 | B39: 6-02 Calcul du résultat complet en MTM
A40: 06 03 | B40: 6-03 Calcul du résultat complet en cout amorti
B42: Résultat en cout amorti
A43: 07 01 | B43: 7-01 Valorisation du portefeuille au 30 décembre 2016
A44: 07 02 | B44: 7-02 Valorisation du portefeuille au 31 mars 2017
A45: 07 03 | B45: 7-03 Résultat latent sur le portefeuille sur la période
B47: Résultat du portefeuille d'ouverture
A48: 08 01 | B48: 8-01 Résultat réalisé
A49: 08 02 | B49: 8-02 Valorisation MtM du portefeuille au 31 décembre 2015
A50: 08 03 | B50: 8-03 Valorisation MtM du portefeuille au 31 mars 2017
A51: 08 04 | B51: 8-04 Résultat latent mtm
A52: 08 05 | B52: 8-05 Financement global du portefeuille
A53: 08 06 | B53: 8-05 Financement global du portefeuille
A54: 08 07 | B54: 8-06 Résultat complet sur les opérations vivantes en début de période
A55: 08 08 | B55: Sensibilité du sous-portefeuille au 30 décembre 2016
B57: Risques au 31 décembre 2015
A58: 09 01 | B58: 9-01 Duration du portefeuille d’ouverture au 30 décembre 2016
A59: 09 02 | B59: 9-02 Sensibilité du portefeuille d’ouverture au 30 décembre 2016
A60: 09 03 | B60: 9-03 Convexité du portefeuille d’ouverture au 30 décembre 2016
B62: Calcul des risques
A63: 09 01 | B63: 10-01 Impact d'une variation théorique de 10bp, premier ordre
A64: 10 02 | B64: 10-02 Impact d'une variation théorique de 10bp, premier ordre et second ordre (avec convexité)

Sheet Sensi
A1: Sensibilité, Duration et Convexité
A3: Obligation à taux fixe
B4: nominal | C4: 100000
B5: coupon | C5: 0.03
B6: maturité | C6: 4 | D6: ans
B7: périodicité | C7: 1 | D7: annnée
B8: taux | C8: 0.035
H9: variation de taux
A10: Echéancier | B10: année | C10: DF | D10: NPV | E10: poids | F10: duration | G10: convexité* | H10: =C8-C17 -> 0.0349 | I10: sensibilité | J10: convexité
A11: =$C$4*C5 -> 3000 | B11: 1 | C11: =POWER(1+$C$8,-B11) -> 0.9661835749 | D11: =C11*A11 -> 2898.550725 | E11: =D11/$D$15 -> 0.02952779693 | F11: =B11 -> 1 | G11: =B11*(1+B11) -> 2 | H11: =POWER(1+$H$10,-B11) -> 0.966276935 | I11: =F11/(1+$C$8) -> 0.9661835749 | J11: =G11/(1+$C$8)^2 -> 1.867021401
A12: =A11 -> 3000 | B12: 2 | C12: =POWER(1+$C$8,-B12) -> 0.9335107004 | D12: =C12*A12 -> 2800.532101 | E12: =D12/$D$15 -> 0.0285292724 | F12: =B12 -> 2 | G12: =B12*(1+B12) -> 6 | H12: =POWER(1+$H$10,-B12) -> 0.9336911151 | I12: =F12/(1+$C$8) -> 1.93236715 | J12: =G12/(1+$C$8)^2 -> 5.601064202
A13: =A12 -> 3000 | B13: 3 | C13: =POWER(1+$C$8,-B13) -> 0.9019427057 | D13: =C13*A13 -> 2705.828117 | E13: =D13/$D$15 -> 0.02756451439 | F13: =B13 -> 3 | G13: =B13*(1+B13) -> 12 | H13: =POWER(1+$H$10,-B13) -> 0.9022041889 | I13: =F13/(1+$C$8) -> 2.898550725 | J13: =G13/(1+$C$8)^2 -> 11.2021284
A14: =A13+C4 -> 103000 | B14: 4 | C14: =POWER(1+$C$8,-B14) -> 0.8714422277 | D14: =C14*A14 -> 89758.54945 | E14: =D14/$D$15 -> 0.9143784163 | F14: =B14 -> 4 | G14: =B14*(1+B14) -> 20 | H14: =POWER(1+$H$10,-B14) -> 0.8717790983 | I14: =F14/(1+$C$8) -> 3.8647343 | J14: =G14/(1+$C$8)^2 -> 18.67021401
C15: =D15/C4 -> 0.981634604 | D15: =SUM(D11:D14) -> 98163.4604 | E15: =SUM(E11:E14) -> 1 | F15: =SUMPRODUCT(F11:F14,E11:E14) -> 3.82679355 | G15: =SUMPRODUCT(G11:G14,E11:E14) -> 18.84857373 | H15: =SUMPRODUCT(H11:H14,A11:A14) -> 98199.76384 | I15: =SUMPRODUCT(I11:I14,E11:E14) -> 3.697385072 | J15: =SUMPRODUCT(J11:J14,E11:E14) -> 17.59534526
C16: bp | D16: =D15/C4 -> 0.981634604 | E16: écart | G16: différence | H16: =H15-D15 -> 36.30344907
A17: sensibilité | B17: =F15/(1+C8) -> 3.697385072 | C17: 0.0001 | D17: =B17*C17*D15 -> 36.29481131 | E17: =H16-D17 -> 0.008637756416
A18: convexité | B18: =G15/(1+C8)/(1+C8) -> 17.59534526 | C18: =C17*C17/2 -> 5e-09 | D18: =B18*C18*D15 -> 0.008636099888 | E18: =E17-D18 -> 1.656527571e-06 | H18: =form(G18) -> 
H19: =form(G19) -> 

Sheet Risques
A1: CALCUL DES RISQUES
B3: Mode actuariel | E3: Mode proportionnel
A5: Montant | B5: 100000 | C5: =form(B5) -> 100000 | E5: =B5 -> 100000 | F5: =form(E5) -> =B5
A6: Taux | B6: 0.035 | C6: =form(B6) -> 0,035 | E6: =B6 -> 0.035 | F6: =form(E6) -> =B6
A7: Début | B7: 2012-03-01 | C7: =form(B7) -> 40969 | E7: =B7 -> 2012-03-01 | F7: =form(E7) -> =B7
A8: Fin | B8: =EDATE(B7,9) -> 2012-12-01 | C8: =form(B8) -> =MOIS.DECALER(B7;9) | E8: =B8 -> 2012-12-01 | F8: =form(E8) -> =B8
A9: Base | B9: 360 | C9: =form(B9) -> 360 | E9: =B9 -> 360 | F9: =form(E9) -> =B9
A11: durée | B11: =B8-B7 -> 275 | C11: =B8-B7 | E11: =B11 -> 275 | F11: =form(E11) -> =B11
A12: Intérêt | B12: =B11*B6*B5/B9 -> 2673.611111 | C12: =B11*B6*B5/B9 | E12: =B12 -> 2673.611111 | F12: =B12
A13: Flux | B13: =B12+B5 -> 102673.6111 | C13: =B12+B5 | E13: =B13 -> 102673.6111 | F13: =B13
A14: Npvzéro | B14: =B13*POWER(1+B6,-B11/B9) -> 100010.6085 | C14: =B13*PUISSANCE(1+B6;-B11/B9) | E14: =E13*POWER(1+E6*E11/E9,-1) -> 100000 | F14: =E13*PUISSANCE(1+E6*E11/E9;-1)
A15: var durée | B15: =B13*POWER(1+B6,-B19/B9) -> 100893.7256 | E15: =E13*POWER(1+E6*E19/E9,-1) -> 100878.809 | F15: =E13*PUISSANCE(1+E6*E19/E9;-1)
A16: var taux | B16: =B13*POWER(1+B20,-B11/B9) -> 100017.9905 | E16: =E13*POWER(1+E20*E11/E9,-1) -> 100007.4405 | F16: =E13*PUISSANCE(1+E20*E11/E9;-1)
A17: NPV | B17: =B13*POWER(1+B20,-B19/B9) -> 100898.6813 | C17: =form(B17) -> =B13*PUISSANCE(1+B20;-B19/B9) | E17: =E13*POWER(1+E20*E19/E9,-1) -> 100883.8476 | F17: =form(E17) -> =E13*PUISSANCE(1+E20*E19/E9;-1)
A18: calcul | B18: 2012-06-01 | C18: 41061 | E18: =B18 -> 2012-06-01 | F18: =B18
A19: durée | B19: =B8-B18 -> 183 | C19: =B8-B18 | E19: =B19 -> 183 | F19: =B19
A20: taux | B20: 0.0349 | C20: 0,0349 | E20: =B20 -> 0.0349 | F20: =B20
A22: MtM | B22: =B17-B14 -> 888.0727881 | C22: =B17-B14 | E22: =E17-E14 -> 883.8475851 | F22: =E17-E14
A23: Couru | B23: =(B18-B7)*B12/B11 -> 894.4444444 | C23: =(B18-B7)*B12/B11 | E23: =(E18-E7)*E12/E11 -> 894.4444444 | F23: =(E18-E7)*E12/E11
A24: PdC | B24: =B22-B23 -> -6.371656385 | C24: =B22-B23 | E24: =E22-E23 -> -10.59685937 | F24: =E22-E23
A25: sensibilité à t0 | B25: =-B11/360*POWER(1+B20,-1) -> -0.7381282142 | C25: =-B11/360*PUISSANCE(1+B20;-1) | E25: =-E11/360*POWER(1+E20*E11/E9,-1) -> -0.7440526519 | F25: =-E11/360*PUISSANCE(1+E20*E11/E9;-1)
A26: sensibilité à t1 | B26: =-B19/360*POWER(1+B20,-1) -> -0.4911907753 | C26: =-B19/360*PUISSANCE(1+B20;-1) | E26: =-E19/360*POWER(1+E20*E11/E9,-1) -> -0.4951332192 | F26: =-E19/360*PUISSANCE(1+E20*E11/E9;-1)
A27: dtaux | B27: =B20-B6 -> -0.0001 | C27: =B20-B6 | E27: =E20-E6 -> -0.0001 | F27: =E20-E6
A29: dp à d0 | B29: =(B16-B14) -> 7.381980976 | E29: =(E16-E14) -> 7.440526519
A30: dP/P à d0 | B30: =(B16-B14)/B17/B27 -> -0.7316231376 | C30: =(B16-B14)/B17/B27 | E30: =(E16-E14)/E17/E27 -> -0.7375339756 | F30: =(E16-E14)/E17/E27
B31: =B25-B30 -> -0.006505076615 | C31: =B25-B30 | E31: =E25-E30 -> -0.006518676233 | F31: =E25-E30
A32: dp à d1 | B32: =(B17-B15) -> 4.955689012 | E32: =(E17-E15) -> 5.038616861
A33: dP/P à d1 | B33: =(B17-B15)/B17/B27 -> -0.4911549834 | C33: =(B17-B15)/B17/B27 | E33: =(E17-E15)/E17/E27 -> -0.4994473329 | F33: =(E17-E15)/E17/E27
B34: =B26-B33 -> -3.57918443e-05 | C34: =B26-B33 | E34: =E26-E33 -> 0.004314113624 | F34: =E26-E33
A36: Méthode à utiliser dans le devoir
A37: dp | B37: =B22-B23 -> -6.371656385 | E37: =E22-E23 -> -10.59685937 | F37: =E22-E23
A38: sensi à d0 | B38: =B25 -> -0.7381282142 | E38: =E25 -> -0.7440526519 | F38: =E25
A39: dp/p/dtx | B39: =B37/B14/B27 -> 0.6370980522 | E39: =E37/E14/E27 -> 1.059685937 | F39: =E37/E14/E27
